fUST/lending_fUST_20250826
["ID","MTS","AMOUNT","RATE_DAILY","PERIOD"]
[381377244,1756169439598,-152.02618,0.00041065,30]
[381377245,1756169439608,-163.355691,0.00041065,30]
[381377246,1756169439617,-163.355691,0.00041065,30]
[381377247,1756169439626,-163.355691,0.00041065,30]
[381377248,1756169439636,-163.355691,0.00041065,30]
[381377249,1756169439645,-151.0,0.00041065,30]
[381377250,1756169439657,-151.0,0.00041065,30]
[381377251,1756169439667,-151.0,0.00041065,30]
[381377252,1756169439676,-151.0,0.00041065,30]
[381377253,1756169439686,-244.445241,0.00041065,30]
[381377254,1756169439695,-244.445241,0.00041065,30]
[381377255,1756169439704,-244.445241,0.00041065,30]
[381377256,1756169439714,-244.445241,0.00041065,30]
[381377257,1756169439724,-151.0,0.00041065,30]
[381377258,1756169439734,-151.0,0.00041065,30]
[381377259,1756169439744,-267.95,0.00041065,30]
[381377260,1756169439753,-151.0,0.00041065,30]
[381377261,1756169439763,-151.0,0.00041065,30]
[381377262,1756169439772,-151.0,0.00041065,30]
[381377263,1756169439782,-151.0,0.00041065,30]
[381377264,1756169439792,-151.0,0.00041065,30]
[381377265,1756169439802,-275.34784,0.00041065,30]
[381377266,1756169439812,-151.0,0.00041065,30]
[381377267,1756169439822,-151.0,0.00041065,30]
[381377268,1756169439832,-189.414142,0.00041065,30]
[381377269,1756169439842,-500.0,0.00041073,5]
[381377270,1756169439851,-500.0,0.00041073,5]
[381377271,1756169439861,-500.0,0.00041073,5]
[381377272,1756169439871,-500.0,0.00041073,5]
[381377273,1756169439880,-500.0,0.00041073,5]
[381377274,1756169439890,-9868.54600077,0.00041075,3]
[381377275,1756169439900,-476.74679671,0.00041075,3]
[381377276,1756169439912,-151.0,0.00041085,30]
[381377277,1756169439921,-151.0,0.00041085,30]
[381377278,1756169439931,-151.0,0.00041085,30]
[381377279,1756169439940,-151.0,0.00041085,30]
[381377280,1756169439950,-59211.2760046,0.00041085,3]
[381377281,1756169439959,-2860.48078026,0.00041085,3]
[381377282,1756169439969,-448.0,0.00041095,7]
[381377283,1756169439978,-500.0,0.00041095,2]
[381377284,1756169439987,-522.18037524,0.00041095,2]
[381377286,1756169439997,-480.0,0.00041095,30]
[381377288,1756169440006,-480.0,0.00041095,30]
[381377290,1756169440016,-480.0,0.00041095,30]
[381377291,1756169440026,-480.0,0.00041095,30]
[381377292,1756169440035,-480.0,0.00041095,30]
[381377293,1756169440045,-480.0,0.00041095,30]
[381377294,1756169440054,-480.0,0.00041095,30]
[381377295,1756169440064,-480.0,0.00041095,30]
[381377296,1756169440074,-938.67,0.00041095,30]
[381377297,1756169440083,-480.0,0.00041095,30]
[381377298,1756169440093,-1190.34,0.00041095,30]
[381377299,1756169440103,-503.11,0.00041095,30]
[381377300,1756169440113,-480.0,0.00041095,30]
[381377301,1756169440123,-480.0,0.00041095,30]
[381377302,1756169440133,-480.0,0.00041095,30]
[381377303,1756169440142,-480.0,0.00041095,30]
[381377304,1756169440152,-480.0,0.00041095,7]
[381377305,1756169440164,-480.0,0.00041095,30]
[381377306,1756169440173,-480.0,0.00041095,30]
[381377307,1756169440182,-629.84050493,0.00041095,30]
[381377308,1756169440192,-481.65,0.00041095,30]
[381377309,1756169440202,-480.0,0.00041095,30]
[381377310,1756169440212,-1523.51,0.00041095,30]
[381377311,1756169440222,-480.0,0.00041095,30]
[381377313,1756169440231,-480.0,0.00041095,30]
[381377315,1756169440241,-308.14237227,0.00041095,30]
[381377317,1756169440251,-998.21,0.00041095,30]
[381377319,1756169440260,-281.34757774,0.00041095,30]
[381377321,1756169440270,-480.0,0.00041095,30]
[381377323,1756169440289,-634.28,0.00041095,14]
[381377325,1756169440298,-480.0,0.00041095,30]
[381377327,1756169440308,-1510.44,0.00041095,30]
[381377329,1756169440318,-480.0,0.00041095,30]
[381377331,1756169440328,-151.0,0.00041095,30]
[381377333,1756169440338,-151.0,0.00041095,30]
[381377335,1756169440348,-151.0,0.00041095,30]
[381377336,1756169440357,-151.0,0.00041095,30]
[381377337,1756169440367,-158.236421,0.00041095,30]
[381377339,1756169440376,-640.32,0.00041095,30]
[381377341,1756169440385,-1007.21,0.00041095,30]
[381377343,1756169440394,-480.0,0.00041095,30]
[381377345,1756169440404,-480.0,0.00041095,30]
[381377347,1756169440414,-480.0,0.00041095,30]
[381377349,1756169440425,-1077.06,0.00041095,30]
[381377350,1756169440435,-526.48,0.00041095,30]
[381377352,1756169440447,-487.13119818,0.00041095,30]
[381377354,1756169440456,-480.0,0.00041095,30]
[381377357,1756169440467,-480.0,0.00041095,30]
[381377358,1756169440477,-480.0,0.00041095,30]
[381377359,1756169440487,-480.0,0.00041095,30]
[381377360,1756169440497,-561.58,0.00041095,30]
[381377362,1756169440508,-1035.54,0.00041095,30]
[381377364,1756169440518,-480.0,0.00041095,30]
[381377366,1756169440527,-480.0,0.00041095,30]
[381377369,1756169440536,-480.21087369,0.00041095,30]
[381377371,1756169440546,-600.84,0.00041095,30]
[381377372,1756169440556,-480.0,0.00041095,30]
[381377373,1756169440565,-480.0,0.00041095,30]
[381377374,1756169440575,-480.0,0.00041095,30]
[381377376,1756169440584,-1093.9,0.00041095,30]
[381377378,1756169440593,-1093.9,0.00041095,30]
[381377381,1756169440603,-480.0,0.00041095,30]
[381377384,1756169440612,-480.0,0.00041095,30]
[381377386,1756169440621,-1159.53,0.00041095,30]
[381377388,1756169440631,-480.0,0.00041095,30]
[381377390,1756169440640,-824.86,0.00041095,30]
[381377392,1756169440650,-1148.17,0.00041095,30]
[381377394,1756169440660,-480.0,0.00041095,30]
[381377396,1756169440669,-480.0,0.00041095,30]
[381377398,1756169440678,-480.0,0.00041095,30]
[381377400,1756169440688,-480.0,0.00041095,30]
[381377402,1756169440697,-480.0,0.00041095,30]
[381377404,1756169440706,-672.66,0.00041095,30]
[381377406,1756169440716,-480.0,0.00041095,30]
[381377408,1756169440725,-480.0,0.00041095,30]
[381377410,1756169440735,-480.0,0.00041095,30]
[381377412,1756169440744,-151.0,0.00041095,30]
[381377414,1756169440754,-480.0,0.00041095,30]
[381377416,1756169440764,-460.0,0.00041095,30]
[381377418,1756169440773,-480.0,0.00041095,30]
[381377420,1756169440783,-480.0,0.00041095,30]
[381377422,1756169440792,-480.0,0.00041095,30]
[381377424,1756169440801,-480.0,0.00041095,30]
[381377426,1756169440811,-1840.53,0.00041095,30]
[381377428,1756169440820,-480.0,0.00041095,30]
[381377430,1756169440830,-1249.68,0.00041095,30]
[381377432,1756169440839,-480.0,0.00041095,30]
[381377434,1756169440848,-480.0,0.00041095,30]
[381377436,1756169440860,-151.0,0.00041095,30]
[381377438,1756169440871,-151.0,0.00041095,30]
[381377440,1756169440881,-151.0,0.00041095,30]
[381377442,1756169440889,-480.0,0.00041095,30]
[381377444,1756169440898,-193.7992,0.00041095,30]
[381377446,1756169440910,-480.0,0.00041095,30]
[381377448,1756169440920,-480.0,0.00041095,30]
[381377450,1756169440929,-480.0,0.00041095,30]
[381377452,1756169440938,-1337.57,0.00041095,30]
[381377454,1756169440948,-480.0,0.00041095,30]
[381377456,1756169440957,-480.0,0.00041095,30]
[381377458,1756169440966,-194.07504943,0.00041095,30]
[381377459,1756169440975,-526.3,0.00041095,30]
[381377460,1756169440984,-608.28,0.00041095,30]
[381377461,1756169440993,-480.0,0.00041095,30]
[381377462,1756169441002,-667.69,0.00041095,30]
[381377463,1756169441012,-480.0,0.00041095,30]
[381377464,1756169441021,-480.0,0.00041095,30]
[381377465,1756169441030,-480.0,0.00041095,30]
[381377466,1756169441039,-480.0,0.00041095,30]
[381377467,1756169441048,-678.01,0.00041095,30]
[381377468,1756169441058,-291.18804829,0.00041095,30]
[381377469,1756169441067,-373.33083487,0.00041095,30]
[381377470,1756169441077,-480.0,0.00041095,30]
[381377471,1756169441085,-480.0,0.00041095,30]
[381377472,1756169441095,-1385.34,0.00041095,30]
[381377473,1756169441103,-480.0,0.00041095,30]
[381377474,1756169441112,-480.0,0.00041095,30]
[381377475,1756169441121,-234.92376346,0.00041095,30]
[381377476,1756169441131,-480.0,0.00041095,30]
[381377477,1756169441140,-1393.03,0.00041095,30]
[381377478,1756169441149,-480.0,0.00041095,30]
[381377479,1756169441159,-480.0,0.00041095,30]
[381377480,1756169441169,-480.0,0.00041095,30]
[381377481,1756169441178,-480.0,0.00041095,30]
[381377482,1756169441187,-602.5,0.00041095,30]
[381377483,1756169441196,-480.0,0.00041095,30]
[381377484,1756169441205,-480.0,0.00041095,30]
[381377485,1756169441214,-480.0,0.00041095,30]
[381377486,1756169441223,-480.0,0.00041095,30]
[381377487,1756169441232,-480.0,0.00041095,30]
[381377488,1756169441241,-480.0,0.00041095,30]
[381377489,1756169441250,-781.83,0.00041095,30]
[381377490,1756169441259,-480.0,0.00041095,30]
[381377491,1756169441269,-480.0,0.00041095,30]
[381377492,1756169441281,-1260.72,0.00041095,30]
[381377493,1756169441290,-730.97,0.00041095,30]
[381377494,1756169441299,-772.95,0.00041095,30]
[381377495,1756169441308,-480.0,0.00041095,30]
[381377496,1756169441319,-570.82,0.00041095,30]
[381377497,1756169441330,-480.0,0.00041095,30]
[381377498,1756169441339,-554.79,0.00041095,30]
[381377499,1756169441349,-480.0,0.00041095,30]
[381377500,1756169441361,-480.0,0.00041095,30]
[381377501,1756169441371,-490.27,0.00041095,30]
[381377502,1756169441380,-874.93,0.00041095,30]
[381377503,1756169441389,-1580.91,0.00041095,30]
[381377504,1756169441398,-480.0,0.00041095,30]
[381377505,1756169441410,-480.0,0.00041095,30]
[381377506,1756169441419,-480.0,0.00041095,30]
[381377507,1756169441428,-498.77,0.00041095,30]
[381377508,1756169441438,-480.0,0.00041095,30]
[381377509,1756169441448,-609.42,0.00041095,30]
[381377510,1756169441457,-480.0,0.00041095,30]
[381377511,1756169441467,-480.0,0.00041095,30]
[381377512,1756169441476,-562.65,0.00041095,30]
[381377513,1756169441485,-480.0,0.00041095,30]
[381377514,1756169441494,-480.0,0.00041095,30]
[381377515,1756169441503,-480.0,0.00041095,30]
[381377516,1756169441512,-480.0,0.00041095,30]
[381377517,1756169441521,-480.0,0.00041095,30]
[381377518,1756169441530,-480.0,0.00041095,30]
[381377519,1756169441539,-480.0,0.00041095,30]
[381377520,1756169441548,-151.0,0.00041095,30]
[381377521,1756169441557,-151.0,0.00041095,30]
[381377522,1756169441566,-270.177408,0.00041095,30]
[381377523,1756169441575,-377.36905618,0.00041095,30]
[381377524,1756169441584,-369.50104855,0.00041095,30]
[381377525,1756169441593,-480.0,0.00041095,30]
[381377526,1756169441602,-1091.35,0.00041095,30]
[381377527,1756169441612,-618.34,0.00041095,30]
[381377528,1756169441621,-151.0,0.00041095,30]
[381377529,1756169441630,-151.0,0.00041095,30]
[381377530,1756169441639,-480.0,0.00041095,30]
[381377531,1756169441648,-1753.14,0.00041095,30]
[381377532,1756169441659,-151.0,0.00041095,30]
[381377533,1756169441668,-151.0,0.00041095,30]
[381377534,1756169441677,-480.0,0.00041095,30]
[381377535,1756169441686,-151.0,0.00041095,30]
[381377536,1756169441695,-151.0,0.00041095,30]
[381377537,1756169441705,-480.0,0.00041095,30]
[381377538,1756169441714,-151.0,0.00041095,30]
[381377539,1756169441724,-151.0,0.00041095,30]
[381377540,1756169441733,-151.0,0.00041095,30]
[381377541,1756169441742,-151.0,0.00041095,30]
[381377542,1756169441751,-151.0,0.00041095,30]
[381377543,1756169441760,-151.0,0.00041095,30]
[381377544,1756169441769,-151.0,0.00041095,30]
[381377545,1756169441778,-260.915638,0.00041095,30]
[381377546,1756169441787,-416.78850643,0.00041095,30]
[381377547,1756169441797,-774.53,0.00041095,30]
[381377548,1756169441806,-480.0,0.00041095,30]
[381377549,1756169441815,-607.65,0.00041095,30]
[381377566,1756169442009,-763.59,0.00041095,30]
[381377568,1756169442020,-480.0,0.00041095,30]
[381377570,1756169442030,-979.17,0.00041095,30]
[381377572,1756169442039,-480.0,0.00041095,30]
[381377574,1756169442050,-480.0,0.00041095,30]
[381377576,1756169442059,-480.0,0.00041095,30]
[381377578,1756169442069,-480.0,0.00041095,30]
[381377580,1756169442078,-480.0,0.00041095,30]
[381377582,1756169442087,-480.0,0.00041095,30]
[381377584,1756169442097,-151.0,0.00041095,30]
[381377586,1756169442109,-151.0,0.00041095,30]
[381377588,1756169442119,-1523.91,0.00041095,30]
[381377590,1756169442128,-151.0,0.00041095,30]
[381377592,1756169442137,-151.0,0.00041095,30]
[381377594,1756169442146,-151.0,0.00041095,30]
[381377596,1756169442156,-213.887336,0.00041095,30]
[381377598,1756169442166,-480.0,0.00041095,30]
[381377600,1756169442175,-1227.55,0.00041095,30]
[381377601,1756169442184,-480.0,0.00041095,30]
[381377604,1756169442195,-1000.0,0.00041095,30]
[381377606,1756169442205,-873.22,0.00041095,30]
[381377608,1756169442214,-514.97,0.00041095,30]
[381377610,1756169442224,-480.0,0.00041095,30]
[381377612,1756169442233,-731.97,0.00041095,30]
[381377614,1756169442242,-158.860453,0.00041095,30]
[381377616,1756169442251,-1624.2,0.00041095,30]
[381377618,1756169442261,-480.0,0.00041095,30]
[381377620,1756169442270,-480.0,0.00041095,30]
[381377622,1756169442281,-151.0,0.00041095,30]
[381377624,1756169442290,-151.0,0.00041095,30]
[381377626,1756169442299,-480.32512807,0.00041095,30]
[381377628,1756169442310,-151.0,0.00041095,30]
[381377630,1756169442319,-151.0,0.00041095,30]
[381377632,1756169442330,-151.0,0.00041095,30]
[381377634,1756169442340,-151.0,0.00041095,30]
[381377636,1756169442350,-151.0,0.00041095,30]
[381377638,1756169442362,-151.0,0.00041095,30]
[381377639,1756169442372,-674.42,0.00041095,30]
[381377640,1756169442382,-480.0,0.00041095,30]
[381377641,1756169442391,-151.0,0.00041095,30]
[381377642,1756169442400,-549.52,0.00041095,30]
[381377643,1756169442413,-151.0,0.00041095,30]
[381377644,1756169442422,-151.0,0.00041095,30]
[381377645,1756169442431,-151.0,0.00041095,30]
[381377646,1756169442440,-151.0,0.00041095,30]
[381377647,1756169442450,-151.0,0.00041095,30]
[381377648,1756169442460,-151.0,0.00041095,30]
[381377649,1756169442470,-151.0,0.00041095,30]
[381377650,1756169442480,-151.0,0.00041095,30]
[381377651,1756169442490,-173.980006,0.00041095,30]
[381377652,1756169442499,-151.0,0.00041095,30]
[381377653,1756169442508,-480.0,0.00041095,30]
[381377654,1756169442517,-1262.02,0.00041095,30]
[381377655,1756169442527,-480.0,0.00041095,30]
[381377656,1756169442536,-915.5,0.00041095,30]
[381377657,1756169442547,-697.16,0.00041095,30]
[381377658,1756169442556,-480.0,0.00041095,30]
[381377659,1756169442566,-480.0,0.00041095,30]
[381377660,1756169442578,-480.0,0.00041095,30]
[381377661,1756169442587,-480.0,0.00041095,30]
[381377662,1756169442596,-57.35492705,0.00041095,30]
[381377663,1756169442650,-422.64507295,0.00041095,30]
[381377664,1756169442662,-151.0,0.00041095,15]
[381377665,1756169442671,-480.0,0.00041095,30]
[381377666,1756169442681,-151.0,0.00041095,15]
[381377667,1756169442690,-480.0,0.00041095,30]
[381377668,1756169442699,-151.0,0.00041095,15]
[381377669,1756169442708,-151.0,0.00041095,15]
[381377670,1756169442718,-151.0,0.00041095,15]
[381377671,1756169442727,-948.81,0.00041095,30]
[381377672,1756169442736,-151.0,0.00041095,15]
[381377673,1756169442745,-151.0,0.00041095,15]
[381377674,1756169442754,-480.0,0.00041095,30]
[381377675,1756169442763,-500.0,0.00041095,120]
[381377676,1756169442772,-616.48,0.00041095,30]
[381377677,1756169442782,-480.0,0.00041095,30]
[381377678,1756169442792,-774.77,0.00041095,30]
[381377679,1756169442801,-480.0,0.00041095,30]
[381377680,1756169442810,-27628.95,0.00041095,30]
[381377681,1756169442820,-654.82,0.00041095,30]
[381377682,1756169442829,-480.0,0.00041095,30]
[381377683,1756169442839,-480.0,0.00041095,30]
[381377684,1756169442848,-571.57,0.00041095,30]
[381377685,1756169442857,-653.28,0.00041095,30]
[381377687,1756169442867,-2987.88,0.00041095,30]
[381377688,1756169442876,-2172.84,0.00041095,30]
[381377690,1756169442885,-480.0,0.00041095,30]
[381377692,1756169442895,-480.0,0.00041095,30]
[381377693,1756169442905,-480.0,0.00041095,30]
[381377694,1756169442917,-567.97,0.00041095,7]
[381377695,1756169442926,-1787.08,0.00041095,30]
[381377696,1756169442935,-512.81,0.00041095,30]
[381377697,1756169442945,-480.0,0.00041095,30]
[381377698,1756169442955,-480.0,0.00041095,30]
[381377699,1756169442964,-480.0,0.00041095,30]
[381377700,1756169442974,-947.33,0.00041095,30]
[381377701,1756169442983,-480.0,0.00041095,30]
[381377702,1756169442993,-598.59,0.00041095,30]
[381377703,1756169443002,-480.0,0.00041095,30]
[381377704,1756169443012,-151.0,0.00041095,30]
[381377705,1756169443022,-480.0,0.00041095,30]
[381377706,1756169443031,-151.0,0.00041095,30]
[381377707,1756169443042,-166.55216135,0.00041095,30]
[381377708,1756169443051,-480.0,0.00041095,30]
[381377709,1756169443061,-603.08,0.00041095,30]
[381377710,1756169443070,-480.0,0.00041095,30]
[381377711,1756169443080,-480.0,0.00041095,30]
[381377712,1756169443090,-1611.55,0.00041095,30]
[381377713,1756169443099,-520.52,0.00041095,30]
[381377714,1756169443109,-151.0,0.00041095,30]
[381377715,1756169443119,-151.0,0.00041095,30]
[381377716,1756169443129,-513.01,0.00041095,30]
[381377717,1756169443139,-2191.96,0.00041095,30]
[381377718,1756169443148,-480.0,0.00041095,30]
[381377719,1756169443159,-1821.39,0.00041095,30]
[381377720,1756169443170,-480.0,0.00041095,30]
[381377721,1756169443179,-480.0,0.00041095,30]
[381377722,1756169443188,-480.0,0.00041095,30]
[381377723,1756169443199,-1109.24,0.00041095,30]
[381377724,1756169443209,-151.0,0.00041095,30]
[381377725,1756169443218,-308.61726175,0.00041095,30]
[381377726,1756169443227,-595.29,0.00041095,30]
[381377727,1756169443240,-486.33,0.00041095,30]
[381377728,1756169443251,-480.0,0.00041095,30]
[381377729,1756169443261,-480.0,0.00041095,30]
[381377730,1756169443270,-480.0,0.00041095,30]
[381377731,1756169443283,-480.0,0.00041095,30]
[381377732,1756169443293,-707.81,0.00041095,30]
[381377733,1756169443303,-880.46,0.00041095,30]
[381377734,1756169443313,-1090.11,0.00041095,30]
[381377735,1756169443324,-480.0,0.00041095,30]
[381377736,1756169443334,-152.219449,0.00041095,30]
[381377737,1756169443344,-752.21,0.00041095,30]
[381377738,1756169443354,-480.0,0.00041095,30]
[381377739,1756169443364,-1328.42,0.00041095,30]
[381377740,1756169443374,-480.0,0.00041095,30]
[381377741,1756169443384,-480.0,0.00041095,30]
[381377742,1756169443393,-480.0,0.00041095,30]
[381377743,1756169443403,-480.0,0.00041095,30]
[381377744,1756169443412,-480.0,0.00041095,30]
[381377745,1756169443422,-1074.6,0.00041095,30]
[381377746,1756169443431,-151.0,0.00041095,30]
[381377747,1756169443440,-480.0,0.00041095,30]
[381377748,1756169443449,-809.27,0.00041095,30]
[381377749,1756169443459,-587.57,0.00041095,30]
[381377750,1756169443469,-480.0,0.00041095,30]
[381377751,1756169443478,-2007.85,0.00041095,30]
[381377752,1756169443488,-480.0,0.00041095,30]
[381377753,1756169443497,-480.0,0.00041095,30]
[381377754,1756169443507,-5207.19,0.00041095,30]
[381377755,1756169443517,-480.0,0.00041095,30]
[381377756,1756169443527,-804.14,0.00041095,30]
[381377757,1756169443537,-955.21,0.00041095,30]
[381377758,1756169443547,-151.0,0.00041095,30]
[381377759,1756169443557,-151.0,0.00041095,30]
[381377760,1756169443566,-151.0,0.00041095,30]
[381377761,1756169443576,-151.0,0.00041095,30]
[381377762,1756169443585,-151.0,0.00041095,30]
[381377763,1756169443594,-480.0,0.00041095,30]
[381377764,1756169443604,-151.0,0.00041095,30]
[381377765,1756169443613,-606.94,0.00041095,30]
[381377766,1756169443623,-242.025526,0.00041095,30]
[381377767,1756169443632,-997.14,0.00041095,30]
[381377768,1756169443641,-480.0,0.00041095,30]
[381377769,1756169443651,-480.0,0.00041095,30]
[381377770,1756169443662,-513.37,0.00041095,30]
[381377771,1756169443671,-2290.19,0.00041095,30]
[381377772,1756169443680,-2676.56,0.00041095,30]
[381377773,1756169443690,-151.0,0.00041095,30]
[381377774,1756169443700,-151.0,0.00041095,30]
[381377775,1756169443709,-480.0,0.00041095,30]
[381377776,1756169443719,-3608.65,0.00041095,30]
[381377777,1756169443730,-1189.37,0.00041095,30]
[381377778,1756169443740,-480.0,0.00041095,30]
[381377779,1756169443749,-506.61,0.00041095,30]
[381377780,1756169443759,-586.59,0.00041095,30]
[381377781,1756169443769,-736.98,0.00041095,30]
[381377782,1756169443778,-480.0,0.00041095,30]
[381377783,1756169443788,-539.06,0.00041095,30]
[381377784,1756169443798,-480.0,0.00041095,30]
[381377785,1756169443810,-9218.09,0.00041095,30]
[381377786,1756169443819,-480.0,0.00041095,30]
[381377787,1756169443829,-480.0,0.00041095,30]
[381377788,1756169443838,-480.0,0.00041095,30]
[381377789,1756169443848,-480.0,0.00041095,30]
[381377790,1756169443857,-480.0,0.00041095,30]
[381377791,1756169443867,-916.36,0.00041095,30]
[381377792,1756169443877,-804.72,0.00041095,30]
[381377793,1756169443887,-480.0,0.00041095,30]
[381377794,1756169443896,-887.14,0.00041095,30]
[381377795,1756169443906,-480.0,0.00041095,30]
[381377796,1756169443917,-480.0,0.00041095,30]
[381377797,1756169443926,-480.0,0.00041095,30]
[381377798,1756169443936,-1075.09,0.00041095,30]
[381377799,1756169443946,-151.0,0.00041095,30]
[381377800,1756169443955,-151.0,0.00041095,30]
[381377801,1756169443966,-480.0,0.00041095,30]
[381377802,1756169443976,-1833.23,0.00041095,30]
[381377803,1756169443986,-151.0,0.00041095,30]
[381377804,1756169443996,-1070.39,0.00041095,30]
[381377805,1756169444006,-151.0,0.00041095,30]
[381377806,1756169444015,-151.0,0.00041095,30]
[381377807,1756169444025,-1366.48,0.00041095,30]
[381377808,1756169444035,-151.0,0.00041095,30]
[381377809,1756169444045,-480.0,0.00041095,30]
[381377810,1756169444054,-480.0,0.00041095,30]
[381377811,1756169444064,-151.0,0.00041095,30]
[381377812,1756169444074,-560.07680711,0.00041095,30]
[381377813,1756169444084,-151.0,0.00041095,30]
[381377814,1756169444093,-498.59,0.00041095,30]
[381377815,1756169444103,-151.0,0.00041095,30]
[381377816,1756169444113,-151.0,0.00041095,30]
[381377817,1756169444122,-151.0,0.00041095,30]
[381377818,1756169444132,-151.0,0.00041095,30]
[381377819,1756169444141,-482.76,0.00041095,30]
[381377820,1756169444151,-271.460044,0.00041095,30]
[381377821,1756169444160,-480.0,0.00041095,30]
[381377822,1756169444171,-847.93,0.00041095,30]
[381377823,1756169444180,-480.0,0.00041095,30]
[381377824,1756169444189,-480.0,0.00041095,30]
[381377825,1756169444199,-480.0,0.00041095,30]
[381377826,1756169444209,-480.0,0.00041095,30]
[381377827,1756169444219,-1467.38,0.00041095,30]
[381377828,1756169444230,-3083.1,0.00041095,30]
[381377829,1756169444240,-480.0,0.00041095,30]
[381377830,1756169444251,-814.82,0.00041095,30]
[381377831,1756169444260,-480.0,0.00041095,30]
[381377832,1756169444332,-620.61,0.00041095,30]
[381377833,1756169444341,-480.0,0.00041095,30]
[381377834,1756169444355,-480.0,0.00041095,30]
[381377835,1756169444373,-506.94,0.00041095,30]
[381377836,1756169444384,-480.0,0.00041095,30]
[381377837,1756169444396,-480.0,0.00041095,30]
[381377839,1756169444417,-959.75,0.00041095,30]
[381377841,1756169444434,-837.18,0.00041095,30]
[381377842,1756169444449,-766.64,0.00041095,30]
[381377843,1756169444459,-1979.83,0.00041095,30]
[381377844,1756169444469,-480.0,0.00041095,30]
[381377845,1756169444479,-480.0,0.00041095,30]
[381377846,1756169444490,-1025.19,0.00041095,30]
[381377848,1756169444500,-480.0,0.00041095,30]
[381377850,1756169444511,-151.0,0.00041095,30]
[381377852,1756169444521,-480.0,0.00041095,30]
[381377854,1756169444530,-3157.66,0.00041095,30]
[381377856,1756169444540,-480.0,0.00041095,30]
[381377857,1756169444548,-2761.28,0.00041095,30]
[381377858,1756169444558,-151.0,0.00041095,30]
[381377859,1756169444567,-833.05,0.00041095,30]
[381377860,1756169444576,-151.0,0.00041095,30]
[381377861,1756169444585,-151.0,0.00041095,30]
[381377862,1756169444594,-151.0,0.00041095,30]
[381377864,1756169444604,-151.0,0.00041095,30]
[381377865,1756169444614,-472.8513181,0.00041095,30]
[381377866,1756169444623,-151.0,0.00041095,30]
[381377867,1756169444632,-151.0,0.00041095,30]
[381377869,1756169444641,-151.0,0.00041095,30]
[381377871,1756169444650,-151.0,0.00041095,30]
[381377873,1756169444659,-151.0,0.00041095,30]
[381377874,1756169444670,-151.0,0.00041095,30]
[381377875,1756169444679,-480.0,0.00041095,30]
[381377877,1756169444689,-151.0,0.00041095,30]
[381377878,1756169444697,-480.0,0.00041095,30]
[381377879,1756169444707,-1839.67,0.00041095,30]
[381377881,1756169444716,-2269.25,0.00041095,30]
[381377883,1756169444725,-1755.05,0.00041095,30]
[381377884,1756169444734,-480.0,0.00041095,30]
[381377886,1756169444744,-639.54,0.00041095,30]
[381377888,1756169444753,-2504.14,0.00041095,30]